bitfinex/quotes_ETHUSD_20251214
["timestamp","ask_amount","ask_price","bid_price","bid_amount"]
[1765717983054,0.30069645,3093.0,3092.9,0.4704]
[1765717985557,0.30069645,3093.0,3092.6,3.73186177]
[1765717985732,0.30069645,3092.9,3092.6,0.002]
[1765717985929,3.23302802,3093.1,3092.6,0.4984]
[1765717986230,0.3010593,3093.0,3092.6,3.73191454]
[1765717986437,0.3010593,3092.9,3092.6,3.73191454]
[1765717986649,1.19677295,3093.1,3092.6,3.73191454]
[1765717986853,0.30111113,3093.0,3092.6,3.73191454]
[1765717987151,0.30111113,3092.9,3092.6,3.73191454]
[1765717987459,0.73387295,3093.1,3092.7,0.4964]
[1765717987661,0.30116927,3093.0,3092.8,0.4704]
[1765717987961,0.4629,3093.4,3092.8,3.70371608]
[1765717987962,0.30116927,3092.9,3092.8,3.70371608]
[1765717988151,0.4629,3093.4,3092.8,3.72971608]
[1765717988345,0.30126086,3093.3,3092.8,3.72971608]
[1765717988532,0.30126086,3093.2,3092.8,3.72971608]
[1765717988732,0.30126086,3093.1,3092.8,3.72971608]
[1765717988932,0.30126086,3093.0,3092.8,3.23331608]
[1765717989134,0.4629,3093.4,3092.8,3.72971608]
[1765717989335,0.67079386,3093.3,3092.8,3.72971608]
[1765717989549,0.30124103,3093.2,3092.8,3.72971608]
[1765717989751,0.30124103,3093.1,3092.8,3.72971608]
[1765717990069,0.30124103,3093.0,3092.8,3.72971608]
[1765717990381,0.36955283,3093.3,3092.8,3.72971608]
[1765717990536,0.30122243,3093.2,3092.8,3.72971608]
[1765717990731,0.30122243,3093.1,3092.8,3.72971608]
[1765717990938,0.30122243,3093.0,3092.8,3.72971608]
[1765717991269,0.36955283,3093.3,3092.8,3.72971608]
[1765717991457,0.30120211,3093.2,3092.8,3.72971608]
[1765717991676,0.36955283,3093.3,3092.8,3.72971608]
[1765717991677,0.30120211,3093.1,3092.8,3.72971608]
[1765717991880,0.30120211,3093.0,3092.8,3.72971608]
[1765717992102,0.36955283,3093.3,3092.8,3.72971608]
[1765717992281,0.30119673,3093.2,3092.8,3.72971608]
[1765717992590,0.30119673,3093.1,3092.8,3.72971608]
[1765717992789,0.30119673,3093.0,3092.8,3.72971608]
[1765717992999,0.36955283,3093.3,3092.8,3.72971608]
[1765717993295,0.30118909,3093.2,3092.8,3.72971608]
[1765717993455,0.30118909,3093.1,3092.8,3.72971608]
[1765717993654,0.30118909,3093.0,3092.8,3.72971608]
[1765717993895,0.36955283,3093.3,3092.8,3.72971608]
[1765717994056,0.3009423,3093.2,3092.9,0.4964]
[1765717994256,0.001,3093.8,3092.9,1.48237929]
[1765717994458,0.30100744,3093.7,3093.1,0.4704]
[1765717994679,0.30100241,3093.6,3093.1,0.9864]
[1765717994892,0.0921,3093.2,3092.8,6.76757446]
[1765717995056,0.30100241,3093.1,3093.0,0.516]
[1765717995251,0.30100241,3093.1,3092.9,0.516]
[1765717995480,0.04041122,3093.2,3092.9,0.516]
[1765717995679,0.4785,3093.0,3092.9,0.516]
[1765717996289,0.77950124,3093.0,3092.9,0.516]
[1765717996495,0.77950124,3093.0,3092.8,0.516]
[1765717996659,0.0767,3092.9,3092.7,3.2333953]
[1765717996860,0.0767,3092.9,3092.6,3.23551722]
[1765717997180,0.0767,3092.9,3092.7,3.2333936]
[1765717997751,0.0767,3092.9,3092.6,0.002]
[1765717997956,0.0767,3092.9,3092.6,3.23544202]
[1765717998156,0.0767,3092.9,3092.6,3.73184202]
[1765717999198,0.30132898,3092.8,3092.6,3.73184202]
[1765717999382,0.0767,3092.9,3092.6,3.73184202]
[1765717999577,0.30127155,3092.8,3092.6,3.73184202]
[1765717999783,0.0767,3092.9,3092.6,3.73184202]
[1765717999984,0.30107139,3092.8,3092.6,3.73184202]
[1765718000162,0.0767,3093.2,3092.6,6.9653672]
[1765718000359,0.30106528,3093.1,3092.6,3.73184202]
[1765718000560,0.30106528,3093.0,3092.6,3.73184202]
[1765718000783,0.30106528,3092.9,3092.6,3.73184202]
[1765718000959,0.30106528,3092.8,3092.6,3.73184202]
[1765718001179,0.0767,3093.2,3092.6,3.73184202]
[1765718001380,0.63201813,3093.1,3092.6,3.73184202]
[1765718001566,0.30106162,3093.0,3092.6,3.73184202]
[1765718001767,0.30106162,3092.9,3092.6,0.518]
[1765718001981,0.30106162,3092.8,3092.6,3.75146251]
[1765718002182,0.79385651,3093.1,3092.6,3.75146251]
[1765718002460,0.76395942,3093.0,3092.6,3.75146251]
[1765718002703,0.30105942,3092.9,3092.6,3.75146251]
[1765718002870,0.30105942,3092.8,3092.6,3.75146251]
[1765718003065,0.4629,3093.0,3092.6,3.75146251]
[1765718003266,0.30106465,3092.9,3092.6,3.75146251]
[1765718003477,0.30106465,3092.8,3092.6,0.518]
[1765718003674,3.23295987,3093.2,3092.6,0.518]
[1765718003893,0.30106585,3093.1,3092.7,0.4704]
[1765718004077,0.30106585,3093.0,3092.7,0.9668]
[1765718004274,0.30106585,3092.9,3092.7,0.9668]
[1765718004594,0.30106585,3092.8,3092.7,0.9668]
[1765718004968,0.30106585,3092.8,3092.7,4.20022063]
[1765718006116,0.189,3093.8,3092.8,0.58047529]
[1765718006270,0.483,3093.6,3092.8,0.516]
[1765718006595,0.3010072,3093.5,3092.7,3.23342063]
[1765718006777,0.3010072,3093.4,3092.7,3.23342063]
[1765718006975,0.3010072,3093.4,3092.6,3.2355201]
[1765718006976,0.3010072,3093.3,3092.6,0.002]
[1765718007184,0.3010072,3093.2,3092.6,0.002]
[1765718007401,0.3010072,3093.1,3092.6,0.002]
[1765718007710,0.3010072,3093.0,3092.6,0.002]
[1765718007873,0.3010072,3092.9,3092.6,0.002]
[1765718008209,0.483,3093.2,3092.6,0.002]
[1765718008509,0.67263863,3093.1,3092.6,0.002]
[1765718008690,0.3010589,3093.0,3092.6,0.002]
[1765718008916,0.3010589,3092.9,3092.6,0.002]
[1765718009066,0.0579,3092.7,3092.6,0.002]
[1765718009431,0.3589589,3092.7,3092.6,0.002]
[1765718010767,0.001,3093.9,3092.7,0.405504]
[1765718010968,0.001,3093.9,3092.9,6.46642308]
[1765718010969,0.30109347,3093.7,3092.9,6.46642308]
[1765718011171,0.34149946,3093.6,3093.0,0.516]
[1765718011373,0.30109347,3093.5,3093.0,0.516]
[1765718011572,0.34150208,3093.4,3093.0,0.516]
[1765718011787,0.0579,3093.1,3092.9,3.23321154]
[1765718011991,0.78401449,3093.0,3092.7,3.74936017]
[1765718012303,0.30110876,3092.9,3092.7,3.74937545]
[1765718012496,0.10681122,3093.2,3092.7,3.74937545]
[1765718012696,0.79260895,3093.1,3092.7,3.74937545]
[1765718012875,0.30110895,3093.0,3092.7,3.74937545]
[1765718013198,0.30110895,3092.9,3092.7,0.516]
[1765718013397,0.4915,3093.1,3092.7,0.516]
[1765718013398,0.53191253,3093.1,3092.7,0.516]
[1765718013567,0.30111285,3093.0,3092.7,6.982837]
[1765718013772,0.516,3093.5,3093.0,0.4593]
[1765718014072,0.34152262,3093.4,3092.6,3.23546044]
[1765718014269,0.0579,3092.9,3092.7,3.23336854]
[1765718014698,0.4872,3093.3,3092.8,0.4593]
[1765718014898,0.30111036,3093.2,3092.8,0.4593]
[1765718015103,0.30111036,3093.1,3092.9,3.23321154]
[1765718015276,0.30111036,3093.0,3092.9,3.23321154]
[1765718015602,0.30111036,3093.0,3092.9,3.72721154]
[1765718015782,0.30111036,3093.0,3092.9,4.18651154]
[1765718016868,0.001,3093.8,3092.9,8.48504304]
[1765718017073,0.001,3093.8,3093.5,0.4593]
[1765718017074,0.30119437,3093.7,3093.5,0.4593]
[1765718017297,0.30119437,3093.6,3093.3,3.23275655]
[1765718017597,0.30119437,3093.5,3093.3,3.72675655]
[1765718017931,0.001,3093.8,3093.4,0.516]
[1765718018103,0.001,3093.8,3093.7,0.4593]
[1765718018474,0.001,3093.8,3093.7,0.9533]
[1765718019394,0.001,3093.8,3093.7,4.18567547]
[1765718020800,0.0589,3093.8,3093.6,3.2324755]
[1765718021500,0.0589,3093.8,3093.4,3.23266984]
[1765718021723,0.0589,3093.8,3093.4,3.72666984]
[1765718022379,0.0589,3093.8,3093.4,3.23266984]
[1765718023672,0.0589,3093.8,3093.4,0.002]
[1765718024987,0.0589,3093.8,3093.4,0.496]
[1765718025189,0.0049,3093.5,3093.4,0.002]
[1765718025375,0.30549565,3093.5,3093.4,0.002]
[1765718025581,0.79699565,3093.5,3093.4,0.002]
[1765718026610,1.1999369,3093.5,3093.4,0.002]
[1765718031230,0.7084369,3093.5,3093.4,0.002]
[1765718031607,1.1999369,3093.5,3093.4,0.002]
[1765718032032,0.7084369,3093.5,3093.4,0.002]
[1765718032633,0.7035369,3093.5,3093.4,0.4613]
[1765718032812,0.30059565,3093.5,3093.4,0.4613]
[1765718033128,0.30059565,3093.7,3093.4,0.4613]
[1765718033312,0.30059565,3093.6,3093.4,0.4613]
[1765718033511,0.30059565,3093.5,3093.4,0.4613]
[1765718034324,0.30059565,3093.7,3093.4,0.9553]
[1765718034526,0.30059565,3093.6,3093.4,0.9553]
[1765718034699,0.516,3093.8,3093.5,0.494]
[1765718034898,0.30073442,3093.7,3093.5,0.9533]
[1765718035094,0.30073442,3093.6,3093.5,0.4593]
[1765718035398,0.30073442,3093.6,3093.4,0.002]
[1765718035399,0.78363442,3093.6,3093.4,0.002]
[1765718035593,0.001,3093.8,3093.5,0.4593]
[1765718035828,0.001,3093.8,3093.4,3.72868895]
[1765718035829,0.001,3093.8,3093.7,0.4593]
[1765718036031,0.30180081,3093.8,3093.7,0.4593]
[1765718036329,0.37010081,3093.8,3093.4,3.70938895]
[1765718036534,0.30080081,3093.7,3093.4,3.23468895]
[1765718036830,0.30079996,3093.6,3093.5,0.4747]
[1765718037205,0.30079996,3093.6,3093.5,0.4714]
[1765718038508,0.76469996,3093.6,3093.4,0.002]
[1765718038829,0.30174073,3093.5,3093.4,0.002]
[1765718040029,0.78274073,3093.5,3093.4,0.002]
[1765718040486,0.30174073,3093.5,3093.4,0.002]
[1765718040807,0.78274073,3093.5,3093.4,0.002]
[1765718041111,0.30084073,3093.5,3093.4,0.4734]
[1765718041312,0.30084073,3093.5,3093.4,0.9481]
[1765718042451,0.30084073,3093.5,3093.4,0.4734]
[1765718042649,0.76474073,3093.5,3093.4,0.002]
[1765718044651,0.85004073,3093.5,3093.4,0.002]
[1765718045447,0.76474073,3093.5,3093.4,0.002]
[1765718045650,1.16849735,3093.5,3093.4,0.002]
[1765718047147,0.90806392,3093.5,3093.4,0.002]
[1765718047351,1.29466193,3093.5,3093.4,0.002]
[1765718047721,1.25425463,3093.5,3093.4,0.002]
[1765718048938,4.48683908,3093.5,3093.4,0.002]
[1765718049753,1.25425463,3093.5,3093.4,0.002]
[1765718052664,1.16895463,3093.5,3093.4,0.002]
[1765718052861,0.76519801,3093.5,3093.4,0.002]
[1765718054558,0.76519801,3093.5,3093.4,0.4734]
[1765718054559,0.30129801,3093.5,3093.4,0.4734]
[1765718057556,0.30129801,3093.5,3093.4,0.002]
[1765718058946,4.59408246,3093.5,3093.4,0.002]
[1765718059154,4.59408246,3093.5,3092.6,0.002]
[1765718059155,0.98597929,3093.4,3092.6,0.002]
[1765718059361,0.1856,3092.7,3092.6,0.002]
[1765718059536,1.00189801,3092.7,3092.6,0.002]
[1765718059736,1.48289801,3092.7,3092.6,0.002]
[1765718061354,4.71631864,3092.7,3092.6,0.002]
[1765718061554,5.52827215,3092.7,3092.6,0.002]
[1765718063342,4.53227215,3092.7,3092.6,0.002]
[1765718063549,5.04727215,3092.7,3092.6,0.002]
[1765718063944,4.53227215,3092.7,3092.6,0.002]
[1765718064258,4.86447215,3092.7,3092.6,0.002]
[1765718065175,4.34947215,3092.7,3092.6,0.002]
[1765718065478,4.86447215,3092.7,3092.6,0.002]
[1765718065900,0.30129801,3092.7,3092.6,0.9492]
[1765718066052,0.81629801,3093.0,3092.6,0.9492]
[1765718066251,0.515,3093.0,3092.9,0.4522]
[1765718066451,0.81517444,3093.0,3092.9,0.4522]
[1765718066678,1.22962811,3093.0,3092.9,0.4522]
[1765718067687,0.71462811,3093.0,3092.9,0.4522]
[1765718067892,0.30017444,3093.0,3092.9,0.937]
[1765718068189,0.30017444,3093.0,3092.9,0.939]
[1765718068359,0.30017444,3093.1,3092.9,0.939]
[1765718068564,0.30017444,3093.0,3092.9,0.002]
[1765718068771,0.4832,3093.0,3092.9,0.002]
[1765718068975,0.70181365,3093.0,3092.9,0.4831]
[1765718071488,0.70181365,3093.0,3092.9,0.002]
[1765718071876,3.93492066,3093.0,3092.9,0.002]
[1765718072471,0.70181365,3093.0,3092.9,0.002]
[1765718073797,4.02282066,3093.0,3092.9,0.002]
[1765718074882,0.78971365,3093.0,3092.9,0.002]
[1765718075269,4.06323449,3093.0,3092.9,0.002]
[1765718075797,0.83012748,3093.0,3092.9,0.002]
[1765718075966,0.48953921,3093.0,3092.9,0.002]
[1765718076292,4.02282066,3093.0,3092.9,0.002]
[1765718077378,0.78971365,3093.0,3092.9,0.002]
[1765718077782,4.02282066,3093.0,3092.9,0.002]
[1765718079402,4.48022066,3093.0,3092.9,0.002]
[1765718080197,4.02282066,3093.0,3092.9,0.002]
[1765718080397,3.93492066,3093.0,3092.9,0.4831]
[1765718080692,0.70181365,3093.0,3092.9,0.4831]
[1765718080897,0.30017444,3093.0,3092.9,0.4831]
[1765718081082,3.53328145,3093.0,3092.9,0.4831]
[1765718084996,0.30017444,3093.0,3092.9,0.4831]
[1765718085298,0.30017444,3093.0,3092.9,0.9679]
[1765718089608,0.30129456,3093.0,3092.9,0.9679]
[1765718090813,0.38919456,3093.0,3092.9,0.002]
[1765718091114,1.12619372,3093.0,3092.9,0.002]
[1765718091697,4.35945899,3093.0,3092.9,0.002]
[1765718094118,4.85727282,3093.0,3092.9,0.002]
[1765718094622,4.39987282,3093.0,3092.9,0.002]
[1765718094821,4.35945899,3093.0,3092.9,0.002]
[1765718096593,4.05800617,3093.0,3092.9,0.002]
[1765718096923,4.36000539,3093.0,3092.9,0.002]
[1765718097221,4.85781922,3093.0,3092.9,0.002]
[1765718098830,4.81740539,3093.0,3092.9,0.002]
[1765718099228,4.85781922,3093.0,3092.9,0.002]
[1765718101293,4.36000539,3093.0,3092.9,0.002]
[1765718101494,4.87503407,3093.0,3092.9,0.002]
[1765718101716,5.33243407,3093.0,3092.9,0.002]
[1765718104333,5.33243407,3093.0,3092.6,0.002]
[1765718104334,12.41953721,3093.0,3092.6,0.002]
[1765718104553,0.28308809,3092.7,3092.6,0.002]
[1765718104704,0.62553374,3092.7,3092.6,0.002]
[1765718105039,1.08843374,3092.7,3092.6,0.002]
[1765718105399,4.28143662,3092.7,3092.6,0.002]
[1765718105727,4.05504853,3092.7,3092.6,0.002]
[1765718105924,4.99493917,3092.7,3092.6,0.002]
[1765718106435,4.99033917,3092.7,3092.6,0.4656]
[1765718107323,5.07713917,3092.7,3092.6,0.002]
[1765718111031,4.99033917,3092.7,3092.6,0.002]
[1765718112236,4.05044853,3092.7,3092.6,0.9363]
[1765718112440,0.8170279,3092.7,3092.6,0.9363]
[1765718112616,4.05044853,3092.7,3092.6,0.9363]
[1765718113126,3.99244853,3092.7,3092.6,0.002]
[1765718113326,3.53544853,3092.7,3092.6,0.4656]
[1765718113937,3.62224853,3092.7,3092.6,0.002]
[1765718114151,4.51230371,3092.7,3092.6,0.002]
[1765718116111,4.42550371,3092.7,3092.6,0.002]
[1765718116311,4.42550371,3092.7,3092.6,0.4656]
[1765718116713,4.94050371,3092.7,3092.6,0.4656]
[1765718118113,5.52692146,3092.7,3092.6,0.002]
[1765718120821,4.97150371,3092.7,3092.6,0.002]
[1765718121024,5.48650371,3092.7,3092.6,0.002]
[1765718121817,1.45347929,3092.6,3092.1,0.002]
[1765718122110,0.17848809,3092.2,3092.1,0.002]
[1765718122336,0.99551599,3092.2,3092.1,0.002]
[1765718122538,1.45841599,3092.2,3092.1,0.002]
[1765718123711,5.27283475,3092.2,3092.1,0.002]
[1765718123927,5.62549578,3092.2,3092.1,0.002]
[1765718124132,6.14049578,3092.2,3092.1,0.002]
[1765718125307,6.18092007,3092.2,3092.1,0.002]
[1765718125929,6.14049578,3092.2,3092.1,0.002]
[1765718127439,6.07142407,3092.2,3092.1,0.002]
[1765718127641,6.58642407,3092.2,3092.1,0.002]
[1765718127847,6.54599978,3092.2,3092.1,0.002]
[1765718128138,5.62549578,3092.2,3092.1,0.002]
[1765718128338,6.18092007,3092.2,3092.1,0.002]
[1765718128543,6.14049578,3092.2,3092.1,0.002]
[1765718129217,6.18092007,3092.2,3092.1,0.002]
[1765718130850,6.07142407,3092.2,3092.1,0.002]
[1765718131143,6.58642407,3092.2,3092.1,0.002]
[1765718131447,6.54599978,3092.2,3092.1,0.002]
[1765718132022,6.67553744,3092.2,3092.1,0.002]
[1765718132943,13.16553744,3092.2,3092.1,0.002]
[1765718134249,41.47817929,3092.1,3091.6,0.002]
[1765718134451,0.537704,3091.6,3091.4,0.002]
[1765718134630,1.34896134,3091.5,3091.4,0.002]
[1765718134826,5.35158526,3091.5,3091.4,0.002]
[1765718135027,6.27359963,3091.5,3091.4,0.002]
[1765718136331,6.77539172,3091.5,3091.4,0.002]
[1765718136637,6.77539172,3091.5,3090.9,0.002]
[1765718136638,1.53537929,3091.4,3091.3,1e-08]
[1765718136818,3.23498964,3091.2,3090.9,0.002]
[1765718137021,0.0049,3091.0,3090.9,0.002]
[1765718137253,2.49456441,3091.0,3090.9,0.002]
[1765718138029,3.30092085,3091.0,3090.9,0.002]
[1765718138453,3.30092085,3091.0,3090.8,1e-08]
[1765718138454,31.65487929,3090.9,3090.8,1e-08]
[1765718138621,31.95690719,3090.9,3090.8,1e-08]
[1765718138822,31.95690719,3090.9,3090.2,0.002]
[1765718138823,0.98597929,3090.7,3089.1,0.4615]
[1765718139059,0.405504,3090.4,3089.2,0.4615]
[1765718139351,0.09628809,3089.3,3089.2,0.4615]
[1765718139553,0.61128809,3089.3,3089.2,0.4615]
[1765718139722,0.61128809,3089.3,3089.2,0.9415]
[1765718140025,0.515,3089.3,3089.2,0.9415]
[1765718140422,0.09628809,3089.5,3089.2,0.9415]
[1765718140652,0.09628809,3089.9,3089.4,0.48]
[1765718140851,0.09628809,3090.3,3089.8,0.48]
[1765718141153,0.515,3090.4,3090.2,0.6701]
[1765718141359,3.75074608,3090.5,3090.4,0.48]
[1765718141654,4.04956131,3090.5,3090.4,0.48]
[1765718141862,3.23502384,3091.2,3090.4,0.9415]
[1765718142041,3.84618338,3091.3,3091.1,0.6701]
[1765718142233,0.29893115,3091.2,3091.1,0.1901]
[1765718142435,0.81393115,3091.2,3091.1,0.6701]
[1765718142847,0.81393115,3091.2,3091.1,1.1316]
[1765718143269,0.29893115,3091.2,3091.1,1.1316]
[1765718143467,0.515,3091.4,3091.1,1.1316]
[1765718143770,0.09628809,3091.3,3091.2,0.4615]
[1765718144066,0.39521924,3091.3,3091.2,0.4615]
[1765718144274,0.39521924,3091.3,3091.2,0.9415]
[1765718145668,4.42611088,3091.3,3091.2,0.48]
[1765718145853,4.46654694,3091.3,3091.2,0.48]
[1765718146055,11.44098086,3091.3,3090.6,0.4615]
[1765718146247,0.09628809,3090.7,3090.6,0.4615]
[1765718146672,0.09628809,3090.7,3090.6,0.9415]
[1765718146853,0.515,3090.9,3090.6,0.9415]
[1765718147171,0.29920534,3091.1,3090.8,0.48]
[1765718147357,0.29920534,3091.2,3090.7,0.4615]
[1765718147742,0.29920534,3091.2,3091.1,0.6701]
[1765718147943,3.53419498,3091.2,3091.1,0.6701]
[1765718148171,3.53419498,3091.2,3091.1,1.1316]
[1765718148475,3.53419498,3091.2,3091.1,1.1336]
[1765718149270,0.67776338,3091.6,3091.1,1.1336]
[1765718149271,3.23468064,3091.5,3091.1,1.1336]
[1765718149477,0.81448569,3091.4,3091.2,0.4615]
[1765718149842,0.81448569,3091.4,3091.3,0.48]
[1765718150277,0.81448569,3091.4,3091.3,0.9415]
[1765718150454,4.04926604,3091.4,3091.3,0.9415]
[1765718150771,0.81448569,3091.4,3091.3,0.9415]
[1765718150973,3.74978035,3091.4,3091.3,0.9415]
[1765718151176,0.001,3091.6,3091.3,1.52197529]
[1765718151363,0.001,3091.6,3091.5,0.48]
[1765718151569,0.001,3091.6,3091.5,0.9415]
[1765718151873,0.001,3091.6,3091.5,4.75665101]
[1765718156149,0.001,3091.6,3091.5,0.9415]
[1765718156472,0.001,3091.6,3091.5,4.17617572]
[1765718158282,0.001,3091.6,3091.5,0.9415]
[1765718158782,0.09728809,3092.7,3091.5,4.17617572]
[1765718158970,0.001,3092.7,3092.6,0.4942]
[1765718159275,0.001,3092.7,3092.6,0.9616]
[1765718161568,0.001,3092.7,3092.6,4.19512518]
[1765718162483,0.001,3092.7,3092.6,0.9616]
[1765718163487,0.001,3092.7,3092.3,0.1974]
[1765718163488,0.075,3092.7,3092.3,0.1974]
[1765718163688,0.04041906,3092.6,3092.3,0.6648]
[1765718163849,0.001,3092.7,3092.3,0.6648]
[1765718164057,0.001,3092.7,3092.6,0.4942]
[1765718165274,0.001,3092.7,3092.6,4.19512518]
[1765718165464,0.001,3092.7,3092.6,5.45300124]
[1765718166483,0.001,3092.7,3092.6,6.03347653]
[1765718166687,0.001,3092.7,3092.6,6.43898053]
[1765718168594,0.001,3092.7,3092.6,36.43898053]
[1765718172063,0.001,3092.7,3092.6,35.92398053]
[1765718172268,0.001,3092.7,3092.6,22.34447653]
[1765718172776,0.001,3092.7,3092.6,36.43798053]
[1765718173102,0.001,3092.7,3092.6,6.03247653]
[1765718173391,0.001,3092.7,3092.6,5.85750524]
[1765718173890,0.001,3092.7,3092.6,6.43798053]
[1765718174093,0.001,3092.7,3092.6,36.43798053]
[1765718174991,0.001,3092.7,3092.6,6.43798053]
[1765718175686,0.001,3092.7,3092.3,0.1974]
[1765718175877,0.001,3092.7,3092.3,0.6648]
[1765718176077,0.0001857,3092.9,3092.3,0.6648]
[1765718176314,0.0001857,3092.9,3092.3,0.77787529]
[1765718176604,0.0001857,3092.9,3092.3,0.1974]
[1765718176898,0.0001857,3092.9,3092.4,3.23373431]
[1765718177198,0.0001857,3092.9,3092.4,3.70113431]
[1765718177502,0.0001857,3092.9,3092.5,0.4674]
[1765718178069,0.0001857,3092.9,3092.4,0.58047529]
[1765718178297,0.001,3092.7,3092.4,0.58047529]
[1765718179101,0.001,3092.7,3092.6,0.4942]
[1765718179504,0.001,3092.7,3092.4,1.04787529]
[1765718179884,0.001,3092.7,3092.6,0.4942]
[1765718180584,0.001,3092.7,3092.4,0.58047529]
[1765718180779,0.001,3092.7,3092.3,0.1974]
[1765718181093,0.001,3092.7,3092.2,0.514]
[1765718181309,0.4763,3092.7,3091.9,0.4674]
[1765718181511,0.4763,3092.7,3091.9,4.21557852]
[1765718181803,0.4763,3092.7,3092.0,0.58047529]
[1765718181999,0.4763,3092.7,3091.9,0.514]
[1765718182509,0.77554565,3092.7,3091.9,0.514]
[1765718182679,0.29924565,3092.6,3091.9,0.514]
[1765718182879,0.4753,3092.6,3091.9,0.514]
[1765718183131,3.23362974,3092.5,3091.9,0.514]
[1765718183313,0.40081754,3092.4,3091.9,0.514]
[1765718183579,0.4683,3092.0,3091.5,0.516]
[1765718183988,0.4683,3092.0,3091.5,1.56387529]
[1765718184381,0.4683,3092.0,3091.5,1.09647529]
[1765718184589,0.0809,3092.3,3091.7,0.58047529]
[1765718185479,0.38034237,3092.3,3091.6,1.04787529]
[1765718185791,3.61420553,3092.3,3091.6,1.04787529]
[1765718186094,0.29948385,3092.2,3091.6,0.4674]
[1765718186300,0.29948385,3092.2,3091.5,0.516]
[1765718186301,0.68481102,3092.1,3091.5,0.516]
[1765718186505,0.68481102,3092.1,3091.5,3.75061327]
[1765718186697,0.68481102,3092.1,3091.5,1.09647529]
[1765718187003,0.68481102,3092.1,3091.5,3.75067335]
[1765718187405,0.68481102,3092.1,3091.5,1.09647529]
[1765718187711,3.91891834,3092.1,3091.5,0.516]
[1765718188508,4.38841834,3092.1,3091.5,0.516]
[1765718188707,7.62252566,3092.1,3091.5,0.516]
[1765718189001,4.38841834,3092.1,3091.5,0.516]
[1765718189886,1.15431102,3092.1,3091.5,1.09647529]
[1765718190097,0.68481102,3092.1,3091.5,0.516]
[1765718190407,3.23388245,3092.3,3091.6,0.4852]
[1765718190644,3.63458246,3092.4,3091.6,0.4852]
[1765718190798,0.29949701,3092.3,3091.6,0.4852]
[1765718191112,3.63458246,3092.4,3091.6,0.4852]
[1765718191307,0.29946012,3092.3,3091.6,0.4852]
[1765718191486,0.71676764,3092.3,3091.6,0.4852]
[1765718191686,0.29945607,3092.2,3091.6,0.4852]
[1765718191888,0.29945607,3092.2,3091.6,3.71975787]
[1765718192088,0.29945813,3092.2,3091.6,3.71975787]
[1765718192286,3.95062115,3092.3,3091.6,3.71975787]
[1765718192489,0.78150231,3092.2,3091.5,3.75061391]
[1765718192701,1.25100231,3092.2,3091.5,3.75061391]
[1765718193005,0.95159387,3092.2,3091.5,3.75061391]
[1765718193310,0.95159387,3092.2,3091.6,3.23456045]
[1765718193914,4.18557078,3092.2,3091.5,4.23583151]
[1765718194809,0.95159387,3092.2,3091.5,4.23583151]
[1765718195012,3.7034762,3092.2,3091.5,4.23583151]
[1765718195211,0.71676764,3092.3,3091.6,0.4852]
[1765718195415,3.23380376,3092.4,3091.6,0.4852]
[1765718195619,0.2993377,3092.3,3091.6,0.4852]
[1765718196116,3.53319126,3092.3,3091.6,3.71974892]
[1765718196307,3.23385356,3092.3,3091.6,3.71974892]
[1765718196816,0.001,3092.7,3092.3,0.405504]
[1765718196987,0.001,3092.7,3092.4,0.514]
[1765718197424,0.001,3092.7,3092.6,0.4867]
[1765718198497,0.001,3092.7,3092.4,4.23290063]
[1765718198694,0.001,3092.7,3092.5,3.23362524]
[1765718198898,0.001,3092.7,3092.4,4.23289566]
[1765718199885,0.001,3092.7,3092.4,0.9992]
[1765718200085,0.001,3092.7,3092.4,0.514]
[1765718200291,0.0797,3092.5,3091.6,3.23449444]
[1765718200493,0.0047,3092.3,3091.7,4.32894176]
[1765718201186,0.4695,3092.2,3091.7,0.514]
[1765718203585,3.70344549,3092.2,3091.5,0.002]
[1765718203785,0.001,3092.7,3092.1,0.6675]
[1765718204115,0.30038744,3092.6,3092.1,0.4867]
[1765718204314,0.0797,3092.2,3091.8,3.74835699]
[1765718204520,0.0797,3092.2,3091.8,4.23355699]
[1765718207121,0.30089812,3092.5,3092.1,0.4867]
[1765718207311,0.30089812,3092.4,3092.1,0.4867]
[1765718207620,0.40009628,3092.5,3092.1,0.4867]
[1765718207814,0.30096596,3092.4,3092.1,0.4867]
[1765718208022,0.40009628,3092.5,3092.1,0.4867]
[1765718208203,0.30096597,3092.4,3092.1,0.4867]
[1765718208402,0.40009628,3092.5,3092.1,0.4867]
[1765718208604,0.30104481,3092.4,3092.1,0.4867]
[1765718208915,0.40009628,3092.5,3092.1,0.4867]
[1765718209094,0.71096734,3092.4,3092.1,0.4867]
[1765718209396,0.30104481,3092.3,3092.1,0.4867]
[1765718209601,0.40992253,3092.4,3092.1,0.4867]
[1765718210193,0.30121746,3092.3,3092.1,0.4867]
[1765718210393,0.40992253,3092.4,3092.1,0.4867]
[1765718210594,0.30121753,3092.3,3092.1,0.4867]
[1765718210820,0.0836,3092.2,3091.9,0.4852]
[1765718211596,0.40992253,3092.4,3092.1,0.4867]
[1765718211918,0.30126332,3092.3,3092.1,0.4867]
[1765718212222,0.4656,3092.6,3092.1,0.4867]
[1765718212425,0.30127042,3092.5,3092.1,0.4867]
[1765718212722,0.30127042,3092.4,3092.1,0.4867]
[1765718212922,0.30127042,3092.3,3092.1,0.4867]
[1765718213141,3.70305347,3092.6,3092.1,0.4867]
[1765718213321,0.72308105,3092.5,3092.1,0.4867]
[1765718213621,0.3012757,3092.4,3092.1,0.4867]
[1765718213823,0.3012757,3092.3,3092.1,0.4867]
[1765718213996,0.42180535,3092.5,3092.1,0.9719]
[1765718214320,0.30127561,3092.4,3092.1,0.666]
[1765718214623,0.30127561,3092.3,3092.2,0.4852]
[1765718215122,0.30127561,3092.3,3092.1,0.1808]
[1765718215421,3.23353136,3092.6,3092.2,0.4867]
[1765718215593,0.3012611,3092.5,3092.2,0.4867]
[1765718215792,0.3012611,3092.4,3092.2,0.4867]
[1765718215989,0.3012611,3092.3,3092.2,0.4867]